[Event "56th Ilmar Raud Memorial 2022"]
[Site "Viljandi"]
[Date "2022.07.09"]
[Round "8.3"]
[White "Shvyrjov, Igor"]
[Black "Pultinevicius, Paulius"]
[Result "0-1"]
[ECO "D03"]
[WhiteElo "2377"]
[BlackElo "2539"]
[Annotator "TA"]
[PlyCount "92"]
[EventDate "2022.07.05"]
[EventType "swiss"]
[EventCountry "EST"]
[SourceTitle "playchess.com"]
[Source "ChessBase"]
[SourceQuality "1"]
[TimeControl "40/5400+30:900+30"]

{[%evp 17,92,-11,-17,-15,-14,-21,-23,-16,-14,-18,-3,-24,-21,-50,-50,-53,-46,-70,-54,-64,-16,-20,0,-18,-22,-43,-36,-81,-62,-91,-84,-84,-89,-123,-143,-150,-150,-141,-110,-147,-104,-141,-113,-138,-141,-165,-111,-122,-112,-109,-114,-111,-112,-113,-121,-108,-45,-183,-180,-259,-255,-265,-245,-244,-238,-478,-485,-29971,-39,-29971,-29973,-29971,-29972,-29950,-12849,-1814,-1598]} 1. d4 {[%emt 0:00:35]} Nf6 {[%emt 0:00:07]} 2. Nf3 {[%emt 0:01:42]} g6 {[%emt 0:00:06]} 3. Bg5 {[%emt 0:00:23]} Bg7 {[%emt 0:00:31]} 4. Nbd2 {[%emt 0:00:41]} d5 {[%emt 0:02:36]} 5. c3 {[%emt 0:00:57]} O-O {[%emt 0:00:42]} 6. e3 {[%emt 0:03:00]} Nbd7 {[%emt 0:00:45]} 7. Be2 {[%emt 0:00:17]} Re8 {[%emt 0:01:00]} 8. O-O {[%emt 0:01:58]} e5 {[%emt 0:05:35]} 9. dxe5 {[%emt 0:00:21]} Nxe5 {[%emt 0:00:04]} 10. Nxe5 {[%emt 0:03:09] D03: 1 d4 d5 2 Nf3 Nf6 3 Bg5, including Torre Attack with early ...d5.} Rxe5 {[%emt 0:00:06]} 11. Nf3 {[%emt 0:00:37]} Re8 {[%emt 0:00:19]} 12. Qb3 {[%emt 0:01:08] Black has an edge.} c6 {[%emt 0:00:41]} 13. Rfd1 {[%emt 0:02:25]} h6 {[%emt 0:01:55]} 14. Bh4 {[%emt 0:04:04]} (14. Bxf6 $5 Qxf6 15. Rd2 $11) 14... Qe7 {[%emt 0:01:08] [#]} 15. a4 $146 {[%emt 0:03:59]} ({Predecessor:} 15. Rac1 g5 16. Bg3 Ne4 17. Nd2 Nxg3 18. hxg3 Be6 19. Qc2 c5 20. Nf3 Rad8 21. Bb5 {½-½ (59) Madrid Sole,A (1717)-Xyko,K (1595) LSS email 2015}) 15... g5 {[%emt 0:02:39]} 16. Bg3 {[%emt 0:00:13]} Ne4 {[%emt 0:00:22] And now ...h5 would win.} 17. Nd2 {[%emt 0:06:24]} Nxg3 {[%emt 0:07:43]} 18. hxg3 {[%emt 0:00:12]} Be6 {[%emt 0:00:41]} (18... h5 $15) 19. Qc2 $11 {[%emt 0:02:28]} g4 {[%emt 0:06:36]} 20. a5 {[%emt 0:05:26]} h5 {[%emt 0:00:27]} 21. Ra4 {[%emt 0:16:58]} Rad8 {[%emt 0:05:14]} 22. Nf1 {[%emt 0:07:39]} c5 {[%emt 0:08:55]} 23. Bb5 {[%emt 0:02:08] [#]} Rf8 {[%emt 0:00:22]} 24. a6 {[%emt 0:00:14]} b6 {[%emt 0:00:33]} 25. Bc6 {[%emt 0:00:17]} Rd6 {[%emt 0:06:32]} 26. Bb7 {[%emt 0:00:14]} Rfd8 {[%emt 0:00:28]} 27. Rd2 {[%emt 0:03:53]} Qg5 {[%emt 0:03:10]} 28. Ra1 {[%emt 0:12:55]} Be5 {[%emt 0:13:24] ...h4 is the strong threat.} 29. Qa4 {[%emt 0:07:55]} d4 {[%emt 0:04:48]} 30. cxd4 {[%emt 0:02:40]} cxd4 {[%emt 0:00:04]} 31. exd4 {[%emt 0:00:34]} Rxd4 {[%emt 0:02:28]} (31... Bxd4 $19 32. Re1 b5) 32. Rxd4 $17 {[%emt 0:00:33]} Bxd4 {[%emt 0:00:05]} 33. Rd1 {[%emt 0:02:14]} Qf6 {[%emt 0:05:40] Black is more active.} ({Don't play} 33... Bxb2 $6 34. Qf4 Qf6 35. Rxd8+ Qxd8 36. Ne3 $11) 34. Rd2 {[%emt 0:00:43]} Bxb2 {[%emt 0:05:28] This bishop pair is nice.} 35. Rxd8+ {[%emt 0:00:33]} Qxd8 {[%emt 0:00:07]} 36. Qb5 {[%emt 0:00:07][%csl LRb2,LRh5]} Bc1 {[%emt 0:02:35]} (36... Bd4 $17 {Threatens to win with ...Qf6.} 37. Qxh5 Qf6) 37. Ne3 {[%emt 0:03:27]} (37. Qe5 $1 $15) 37... h4 $36 {[%emt 0:03:08][%mdl 2048] White must now prevent ...Bxe3. Black is really pushing.} 38. Nd5 {[%emt 0:03:37]} (38. Nf5 $142) 38... hxg3 {[%emt 0:00:39]} 39. fxg3 {[%emt 0:00:02]} Qg5 {[%emt 0:00:46]} 40. Qd3 {[%emt 0:00:00] Prevents Be3+.} Qe5 {[%emt 0:00:00][%cal Ob6b5] Inhibits Qd4.} 41. Kh2 $2 {[%emt 0:10:32]} (41. Qc3 Qxc3 42. Nxc3) 41... b5 {[%emt 0:04:12] Strongly threatening ...Bb2.} 42. Qxb5 {[%emt 0:07:44] [#]} (42. Qc2 $19 Bb2 43. Qc7 Qh5+ 44. Kg1) 42... Qh5+ {[%emt 0:00:06]} 43. Kg1 {[%emt 0:00:01]} Be3+ $1 {[%emt 0:00:07]} 44. Kf1 {[%emt 0:00:01]} Qf5+ {[%emt 0:00:06]} 45. Ke2 {[%emt 0:00:10]} Qf2+ {[%emt 0:00:03]} 46. Kd3 {[%emt 0:00:01]} Qf1+ {[%emt 0:00:06] Weighted Error Value: White=0.50/Black=0.10 (very precise)} 0-1

[Event "56th Ilmar Raud Memorial 2022"]
[Site "Viljandi"]
[Date "2022.07.09"]
[Round "8.4"]
[White "Soot, Margus"]
[Black "Maiorov, Nikita"]
[Result "1/2-1/2"]
[ECO "A46"]
[WhiteElo "2062"]
[BlackElo "2474"]
[Annotator "RC"]
[PlyCount "138"]
[EventDate "2022.07.05"]
[EventType "swiss"]
[EventCountry "EST"]
[SourceTitle "playchess.com"]
[Source "ChessBase"]
[SourceQuality "1"]
[TimeControl "40/5400+30:900+30"]

1. Nf3 {[%emt 0:00:04]} d5 {[%emt 0:00:21]} 2. d4 {[%emt 0:00:09]} e6 {[%emt 0:00:11]} 3. g3 {[%emt 0:02:32]} Nf6 {[%emt 0:00:06]} 4. Bg2 {[%emt 0:00:04]} b5 {[%emt 0:00:40]} 5. O-O {[%emt 0:00:42]} Nbd7 {[%emt 0:00:54]} 6. b3 {[%emt 0:01:20]} Be7 {[%emt 0:11:12]} 7. c4 {[%emt 0:04:54]} bxc4 {[%emt 0:01:02]} 8. bxc4 {[%emt 0:00:01]} c6 {[%emt 0:00:14]} 9. Ba3 {[%emt 0:06:42]} Bxa3 {[%emt 0:03:47]} 10. Nxa3 {[%emt 0:00:05]} Qa5 {[%emt 0:00:20]} 11. Nc2 {[%emt 0:02:14]} Ba6 {[%emt 0:00:39]} 12. Ne3 {[%emt 0:00:08]} O-O {[%emt 0:00:24]} 13. Qd2 {[%emt 0:05:53]} Qa4 {[%emt 0:02:23]} 14. Rfc1 {[%emt 0:10:10]} Rfc8 {[%emt 0:20:00]} 15. Qc2 {[%emt 0:14:56]} Qa5 {[%emt 0:02:02]} 16. Qc3 {[%emt 0:06:42]} Qxc3 {[%emt 0:04:54]} 17. Rxc3 {[%emt 0:00:11]} Ne4 {[%emt 0:00:08]} 18. Ra3 {[%emt 0:01:39]} Bxc4 {[%emt 0:01:29]} 19. Nxc4 {[%emt 0:05:11]} dxc4 {[%emt 0:00:04]} 20. Ne5 {[%emt 0:04:20]} Nxe5 {[%emt 0:07:56]} 21. Bxe4 {[%emt 0:00:33]} Nd7 {[%emt 0:00:20]} 22. Rc1 {[%emt 0:00:08]} Nb6 {[%emt 0:01:09]} 23. Ra6 {[%emt 0:00:08]} Rc7 {[%emt 0:02:05]} 24. a4 {[%emt 0:06:11]} Rb8 {[%emt 0:01:51]} 25. Bf3 {[%emt 0:01:51]} Kf8 {[%emt 0:06:43]} 26. e3 {[%emt 0:00:12]} Ke7 {[%emt 0:06:17]} 27. Be2 {[%emt 0:00:30]} Rbb7 {[%emt 0:07:40]} 28. Bxc4 {[%emt 0:00:31]} c5 {[%emt 0:00:09]} 29. Be2 {[%emt 0:05:45]} cxd4 {[%emt 0:00:35]} 30. Rxc7+ {[%emt 0:00:04]} Rxc7 {[%emt 0:00:04]} 31. exd4 {[%emt 0:00:05]} Nd5 {[%emt 0:02:38]} 32. Bf3 {[%emt 0:02:01]} Nb4 {[%emt 0:02:43]} 33. Ra5 {[%emt 0:00:25]} Rd7 {[%emt 0:08:42]} 34. Kg2 {[%emt 0:00:56]} Nc2 {[%emt 0:01:41]} 35. Bc6 {[%emt 0:01:06]} Rc7 {[%emt 0:00:14]} 36. d5 {[%emt 0:00:26]} Nd4 {[%emt 0:03:20]} 37. Ba8 {[%emt 0:00:38]} Nb3 {[%emt 0:01:17]} 38. Rb5 {[%emt 0:05:32]} Nc5 {[%emt 0:00:06]} 39. dxe6 {[%emt 0:00:53]} Kxe6 {[%emt 0:00:25]} 40. Rb4 {[%emt 0:00:00]} Kd6 {[%emt 0:00:00]} 41. Rd4+ {[%emt 0:02:29]} Ke7 {[%emt 0:01:45]} 42. f4 {[%emt 0:02:22]} Rd7 {[%emt 0:03:52]} 43. Rc4 {[%emt 0:00:48]} Rd2+ {[%emt 0:00:12]} 44. Kh3 {[%emt 0:01:01]} Kd6 {[%emt 0:00:12]} 45. Be4 {[%emt 0:00:02]} h6 {[%emt 0:01:21]} 46. Bf3 {[%emt 0:00:44]} f5 {[%emt 0:03:35]} 47. g4 {[%emt 0:00:56]} Rd3 {[%emt 0:02:53]} 48. Kg2 {[%emt 0:00:31]} fxg4 {[%emt 0:00:04]} 49. Bxg4 {[%emt 0:00:10]} a5 {[%emt 0:02:39]} 50. Bf3 {[%emt 0:01:04]} Ra3 {[%emt 0:00:44]} 51. Rd4+ {[%emt 0:00:07]} Ke7 {[%emt 0:01:55]} 52. Bc6 {[%emt 0:00:29]} Rd3 {[%emt 0:01:22]} 53. Rxd3 {[%emt 0:00:07]} Nxd3 {[%emt 0:00:04]} 54. Kf3 {[%emt 0:00:02]} Nc5 {[%emt 0:00:19]} 55. Kg4 {[%emt 0:00:22]} Kf6 {[%emt 0:00:22]} 56. Bb5 {[%emt 0:00:49]} Ne6 {[%emt 0:00:09]} 57. Bd7 {[%emt 0:00:28]} Nd4 {[%emt 0:00:27]} 58. Kg3 {[%emt 0:02:24]} Ke7 {[%emt 0:00:26]} 59. Bg4 {[%emt 0:00:08]} Kd6 {[%emt 0:00:08]} 60. Bd1 {[%emt 0:00:17]} Kd5 {[%emt 0:00:47]} 61. Bh5 {[%emt 0:00:47]} Kc5 {[%emt 0:00:53]} 62. Be8 {[%emt 0:00:08]} Kd5 {[%emt 0:01:11]} 63. Bg6 {[%emt 0:00:47]} Ne2+ {[%emt 0:01:07]} 64. Kg4 {[%emt 0:00:39]} Ke6 {[%emt 0:00:30]} 65. h4 {[%emt 0:02:18]} Kf6 {[%emt 0:00:13]} 66. h5 {[%emt 0:00:06]} Nc3 {[%emt 0:04:35]} 67. Be8 {[%emt 0:00:49]} Nd5 {[%emt 0:00:00]} 68. Bc6 {[%emt 0:00:20]} Nb4 {[%emt 0:00:00]} 69. Be4 {[%emt 0:00:21]} Na6 {[%emt 0:00:00]} 1/2-1/2

[Event "56th Ilmar Raud Memorial 2022"]
[Site "Viljandi"]
[Date "2022.07.09"]
[Round "8.5"]
[White "Sakalauskas, Vaidas"]
[Black "Kiik, Kalle"]
[Result "1-0"]
[ECO "A41"]
[WhiteElo "2327"]
[BlackElo "2365"]
[Annotator "RC"]
[PlyCount "77"]
[EventDate "2022.07.05"]
[EventType "swiss"]
[EventCountry "EST"]
[SourceTitle "playchess.com"]
[Source "ChessBase"]
[SourceQuality "1"]
[TimeControl "40/5400+30:900+30"]

1. d4 {[%emt 0:00:03]} d6 {[%emt 0:00:27]} 2. c4 {[%emt 0:00:52]} e5 {[%emt 0:03:42]} 3. d5 {[%emt 0:00:53]} f5 {[%emt 0:01:35]} 4. e4 {[%emt 0:01:37]} Nf6 {[%emt 0:00:32]} 5. exf5 {[%emt 0:02:03]} Bxf5 {[%emt 0:00:32]} 6. Nc3 {[%emt 0:00:56]} Be7 {[%emt 0:04:23]} 7. Nge2 {[%emt 0:01:20]} O-O {[%emt 0:08:18]} 8. Ng3 {[%emt 0:02:40]} Bg6 {[%emt 0:00:08]} 9. Bd3 {[%emt 0:00:37]} Bxd3 {[%emt 0:08:12]} 10. Qxd3 {[%emt 0:00:28]} Nbd7 {[%emt 0:00:09]} 11. O-O {[%emt 0:13:27]} Nc5 {[%emt 0:01:42]} 12. Qe2 {[%emt 0:03:23]} Qd7 {[%emt 0:02:42]} 13. Be3 {[%emt 0:05:03]} Na4 {[%emt 0:08:05]} 14. Nce4 {[%emt 0:05:47]} Nxe4 {[%emt 0:00:29]} 15. Nxe4 {[%emt 0:00:05]} Qf5 {[%emt 0:02:45]} 16. f3 {[%emt 0:00:56]} Nb6 {[%emt 0:00:31]} 17. Rac1 {[%emt 0:05:06]} h6 {[%emt 0:03:36]} 18. Rfd1 {[%emt 0:01:20]} Qf7 {[%emt 0:01:45]} 19. Qd3 {[%emt 0:02:28]} Rfd8 {[%emt 0:04:45]} 20. Qb3 {[%emt 0:01:15]} c5 {[%emt 0:13:38]} 21. Qa3 {[%emt 0:20:52]} Nd7 {[%emt 0:02:55]} 22. b4 {[%emt 0:00:47]} cxb4 {[%emt 0:05:27]} 23. Qxb4 {[%emt 0:00:07]} b6 {[%emt 0:00:08]} 24. a4 {[%emt 0:01:28]} Rab8 {[%emt 0:05:23]} 25. a5 {[%emt 0:01:58]} Qg6 {[%emt 0:11:53]} 26. axb6 {[%emt 0:01:18]} axb6 {[%emt 0:00:06]} 27. Rb1 {[%emt 0:02:11]} Rf8 {[%emt 0:03:56]} 28. Kh1 {[%emt 0:03:10]} Kh7 {[%emt 0:00:40]} 29. Qa4 {[%emt 0:02:14]} Nf6 {[%emt 0:01:29]} 30. Nxf6+ {[%emt 0:05:16]} Rxf6 {[%emt 0:00:09]} 31. Rxb6 {[%emt 0:01:34]} Rxb6 {[%emt 0:00:38]} 32. Bxb6 {[%emt 0:00:02]} e4 {[%emt 0:00:08]} 33. Qc2 {[%emt 0:03:41]} exf3 {[%emt 0:00:23]} 34. Qxg6+ {[%emt 0:00:03]} Kxg6 {[%emt 0:00:15]} 35. gxf3 {[%emt 0:00:01]} Rxf3 {[%emt 0:00:20]} 36. c5 {[%emt 0:00:25]} dxc5 {[%emt 0:06:02]} 37. d6 {[%emt 0:00:23]} Bf6 {[%emt 0:00:23]} 38. d7 {[%emt 0:00:10]} c4 {[%emt 0:00:23]} 39. Rd6 {[%emt 0:00:23]} 1-0

[Event "56th Ilmar Raud Memorial 2022"]
[Site "Viljandi"]
[Date "2022.07.09"]
[Round "8.6"]
[White "Miezis, Normunds"]
[Black "Sirosh, Ilja"]
[Result "1-0"]
[ECO "A21"]
[WhiteElo "2446"]
[BlackElo "2402"]
[Annotator "RC"]
[PlyCount "81"]
[EventDate "2022.07.05"]
[EventType "swiss"]
[EventCountry "EST"]
[SourceTitle "playchess.com"]
[Source "ChessBase"]
[SourceQuality "1"]
[TimeControl "40/5400+30:900+30"]

1. c4 {[%emt 0:00:05]} e5 {[%emt 0:00:07]} 2. Nc3 {[%emt 0:00:24]} Bb4 {[%emt 0:00:09]} 3. g3 {[%emt 0:01:42]} Bxc3 {[%emt 0:00:17]} 4. dxc3 {[%emt 0:00:15]} d6 {[%emt 0:00:30]} 5. e4 {[%emt 0:01:25]} Nd7 {[%emt 0:02:54]} 6. Bg2 {[%emt 0:03:48]} Nc5 {[%emt 0:03:29]} 7. Be3 {[%emt 0:10:36]} b6 {[%emt 0:12:57]} 8. b4 {[%emt 0:09:55]} Ne6 {[%emt 0:01:27]} 9. Nh3 {[%emt 0:00:43]} Nf6 {[%emt 0:05:47]} 10. f4 {[%emt 0:02:08]} Bb7 {[%emt 0:11:00]} 11. Nf2 {[%emt 0:00:59]} c6 {[%emt 0:15:42]} 12. a4 {[%emt 0:08:45]} O-O {[%emt 0:07:10]} 13. O-O {[%emt 0:04:07]} Re8 {[%emt 0:07:11]} 14. Qd2 {[%emt 0:06:17]} Qc7 {[%emt 0:05:20]} 15. f5 {[%emt 0:02:51]} Nf8 {[%emt 0:00:10]} 16. g4 {[%emt 0:00:13]} d5 {[%emt 0:00:36]} 17. g5 {[%emt 0:05:00]} Nxe4 {[%emt 0:00:12]} 18. Nxe4 {[%emt 0:01:19]} dxe4 {[%emt 0:00:04]} 19. c5 {[%emt 0:00:18]} Ba6 {[%emt 0:02:14]} 20. Rfe1 {[%emt 0:12:03]} Bd3 {[%emt 0:00:18]} 21. Qf2 {[%emt 0:00:35]} bxc5 {[%emt 0:03:03]} 22. Bxc5 {[%emt 0:00:10]} Nd7 {[%emt 0:00:16]} 23. Bxe4 {[%emt 0:02:42]} Nxc5 {[%emt 0:00:15]} 24. Qxc5 {[%emt 0:00:53]} Bxe4 {[%emt 0:00:16]} 25. Rxe4 {[%emt 0:00:08]} Qd8 {[%emt 0:12:29]} 26. Qe3 {[%emt 0:03:28]} Qd5 {[%emt 0:01:41]} 27. Re1 {[%emt 0:07:43]} f6 {[%emt 0:00:44]} 28. Rg4 {[%emt 0:03:44]} Kh8 {[%emt 0:03:50]} 29. Rh4 {[%emt 0:03:42]} fxg5 {[%emt 0:00:18]} 30. Qxg5 {[%emt 0:00:18]} Qf7 {[%emt 0:01:16]} 31. Rhe4 {[%emt 0:03:42]} Qf6 {[%emt 0:00:33]} 32. Qxf6 {[%emt 0:01:19]} gxf6 {[%emt 0:00:01]} 33. Rc4 {[%emt 0:00:12]} a5 {[%emt 0:01:07]} 34. b5 {[%emt 0:02:02]} cxb5 {[%emt 0:00:05]} 35. axb5 {[%emt 0:00:06]} Rec8 {[%emt 0:02:36]} 36. Rxc8+ {[%emt 0:00:35]} Rxc8 {[%emt 0:00:01]} 37. Rc1 {[%emt 0:00:13]} a4 {[%emt 0:01:34]} 38. c4 {[%emt 0:00:12]} a3 {[%emt 0:00:08]} 39. c5 {[%emt 0:00:16]} a2 {[%emt 0:01:39]} 40. c6 {[%emt 0:00:00]} Kg7 {[%emt 0:00:00]} 41. Ra1 {[%emt 0:00:43]} 1-0

[Event "56th Ilmar Raud Memorial 2022"]
[Site "Viljandi"]
[Date "2022.07.10"]
[Round "9.1"]
[White "Sakalauskas, Vaidas"]
[Black "Laurusas, Tomas"]
[Result "1/2-1/2"]
[ECO "D94"]
[WhiteElo "2327"]
[BlackElo "2561"]
[Annotator "TA"]
[PlyCount "34"]
[EventDate "2022.07.05"]
[EventType "swiss"]
[EventCountry "EST"]
[SourceTitle "playchess.com"]
[Source "ChessBase"]
[SourceQuality "1"]
[TimeControl "40/5400+30:900+30"]

{[%evp 14,21,29,18,57,52,41,50,51,42]} 1. d4 {[%emt 0:03:22]} d5 {[%emt 0:00:12]} 2. c4 {[%emt 0:00:35]} c6 {[%emt 0:00:05]} 3. Nc3 {[%emt 0:00:13]} Nf6 {[%emt 0:00:06]} 4. e3 {[%emt 0:00:30]} g6 {[%emt 0:02:12]} 5. Nf3 {[%emt 0:01:47]} Bg7 {[%emt 0:00:17]} 6. Be2 {[%emt 0:00:45]} O-O {[%emt 0:00:19]} 7. O-O {[%emt 0:00:22]} a6 $1 {[%emt 0:00:05][%mdl 4] is more profitable than 7...Bg4 at the moment.} 8. Bd2 {[%emt 0:00:55]} Bg4 {[%emt 0:00:46] D94: Grünfeld: 4 Nf3 Bg7 5 e3.} 9. Qb3 {[%emt 0:05:12] White is slightly better.} Ra7 {[%emt 0:00:18]} 10. h3 {[%emt 0:01:34]} Bxf3 {[%emt 0:00:20]} 11. Bxf3 {[%emt 0:00:23] [#] White took control after the opening.  Weighted Error Value: White=0.03 (flawless) /Black=0.11 (very precise)} {Predecessor:} e6 $146 12. Rfd1 Nbd7 13. e4 dxe4 14. Bxe4 Nxe4 15. Nxe4 Qc7 16. Bb4 Re8 17. Qf3 Raa8 {1-0 (45) Artemiev,V (2728)-Laurusas,T (2509) Chess.com INT 2020} 1/2-1/2

[Event "56th Ilmar Raud Memorial 2022"]
[Site "Viljandi"]
[Date "2022.07.10"]
[Round "9.2"]
[White "Maiorov, Nikita"]
[Black "Kulaots, Kaido"]
[Result "1/2-1/2"]
[ECO "E36"]
[WhiteElo "2474"]
[BlackElo "2543"]
[Annotator "TA"]
[PlyCount "68"]
[EventDate "2022.07.05"]
[EventType "swiss"]
[EventCountry "EST"]
[SourceTitle "playchess.com"]
[Source "ChessBase"]
[SourceQuality "1"]
[TimeControl "40/5400+30:900+30"]

{[%evp 15,68,10,10,13,25,10,2,3,0,0,0,0,0,0,0,0,0,0,0,0,0,0,0,0,26,25,27,0,0,0,0,0,0,0,13,0,0,0,8,8,18,0,0,0,0,0,0,0,0,0,0,0,0,0,0]} 1. d4 {[%emt 0:00:03]} Nf6 {[%emt 0:00:12]} 2. c4 {[%emt 0:00:04]} e6 {[%emt 0:00:18]} 3. Nc3 {[%emt 0:00:09]} Bb4 {[%emt 0:00:18]} 4. Qc2 {[%emt 0:00:03]} O-O {[%emt 0:00:57]} 5. a3 {[%emt 0:00:03]} Bxc3+ {[%emt 0:00:08]} 6. Qxc3 {[%emt 0:00:03]} d5 {[%emt 0:00:15]} 7. Nf3 {[%emt 0:00:36]} dxc4 {[%emt 0:00:29]} 8. Qxc4 {[%emt 0:00:03]} b6 {[%emt 0:00:06]} 9. Bg5 {[%emt 0:00:05] E36: Nimzo-Indian: Classical: 4...d5 5 a3.} c5 {[%emt 0:01:41]} 10. dxc5 {[%emt 0:02:21]} bxc5 {[%emt 0:01:59] [#]} 11. Qc2 $146 {[%emt 0:18:35]} ({Predecessor:} 11. Nd2 Ba6 12. Qc2 h6 13. Bh4 Nbd7 14. e3 Bxf1 15. Rxf1 c4 16. Ke2 Qb8 17. Bg3 {1-0 (39) Shankland,S (2708)-Grischuk,A (2764) Belgrade 2022}) 11... h6 {[%emt 0:05:28]} 12. Bxf6 {[%emt 0:12:42]} Qxf6 {[%emt 0:00:33]} 13. e3 {[%emt 0:00:07]} Nd7 {[%emt 0:01:59][%cal Bb8d7,Bd7e5,Be5g4][%mdl 32]} 14. Be2 {[%emt 0:00:53]} Rb8 {[%emt 0:00:52]} 15. Rb1 {[%emt 0:00:10]} Bb7 {[%emt 0:02:31]} 16. O-O {[%emt 0:00:31]} Ne5 {[%emt 0:14:18]} 17. Nd2 {[%emt 0:05:51]} Qg5 {[%emt 0:08:30][%csl Gb7][%cal Rg5g2] [#]} 18. g3 {[%emt 0:00:20]} Rfd8 {[%emt 0:09:18]} 19. Rfd1 {[%emt 0:25:44]} Ng4 {[%emt 0:25:01][%cal Og4e3]} 20. Nc4 {[%emt 0:03:15]} h5 {[%emt 0:07:40]} 21. Rxd8+ {[%emt 0:08:44]} (21. f3 $5 {[%cal Rf3g4]} Nf6 22. Rxd8+ Rxd8 23. Rd1 Rxd1+ 24. Qxd1 $14) 21... Rxd8 {[%emt 0:00:13] The position is equal.} 22. Rd1 {[%emt 0:00:19]} Rxd1+ {[%emt 0:06:26]} 23. Qxd1 {[%emt 0:01:12]} Bd5 {[%emt 0:00:34]} 24. h3 {[%emt 0:13:56]} Nf6 {[%emt 0:04:16]} 25. Nd2 {[%emt 0:00:23]} Qf5 {[%emt 0:00:54]} 26. Qa4 {[%emt 0:05:15]} Qe5 {[%emt 0:05:08]} ({Resist} 26... Qxh3 27. e4 h4 28. g4 $16) 27. Qc2 {[%emt 0:00:26]} Bb7 {[%emt 0:01:44]} 28. Bf3 {[%emt 0:01:29]} Bxf3 {[%emt 0:00:17]} 29. Nxf3 $11 {[%emt 0:00:02][%mdl 4096] Endgame KQN-KQN} Qd5 {[%emt 0:00:04]} 30. Nd2 {[%emt 0:00:19]} Nd7 {[%emt 0:02:14]} 31. Nc4 {[%emt 0:01:14]} Nb6 {[%emt 0:00:36]} 32. Nd2 {[%emt 0:00:15]} Nd7 {[%emt 0:00:13]} 33. Nc4 {[%emt 0:00:23]} Nb6 {[%emt 0:00:41]} 34. Nd2 {[%emt 0:00:04]} Nd7 {[%emt 0:01:37] An interesting draw.  Weighted Error Value: White=0.03 (flawless) /Black=0.03 (flawless)} 1/2-1/2

[Event "56th Ilmar Raud Memorial 2022"]
[Site "Viljandi"]
[Date "2022.07.10"]
[Round "9.3"]
[White "Pultinevicius, Paulius"]
[Black "Soot, Margus"]
[Result "1-0"]
[ECO "D61"]
[WhiteElo "2539"]
[BlackElo "2062"]
[Annotator "RC"]
[PlyCount "95"]
[EventDate "2022.07.05"]
[EventType "swiss"]
[EventCountry "EST"]
[SourceTitle "playchess.com"]
[Source "ChessBase"]
[SourceQuality "1"]
[TimeControl "40/5400+30:900+30"]

1. d4 {[%emt 0:00:02]} d5 {[%emt 0:01:16]} 2. c4 {[%emt 0:00:05]} e6 {[%emt 0:00:06]} 3. Nc3 {[%emt 0:00:04]} Nf6 {[%emt 0:00:20]} 4. Bg5 {[%emt 0:00:07]} Be7 {[%emt 0:00:07]} 5. Nf3 {[%emt 0:00:07]} c6 {[%emt 0:00:25]} 6. e3 {[%emt 0:00:07]} Nbd7 {[%emt 0:05:52]} 7. Qc2 {[%emt 0:00:34]} h6 {[%emt 0:06:20]} 8. Bh4 {[%emt 0:00:06]} b6 {[%emt 0:03:33]} 9. Bd3 {[%emt 0:03:44]} Bb7 {[%emt 0:00:55]} 10. O-O {[%emt 0:01:57]} O-O {[%emt 0:00:45]} 11. Rad1 {[%emt 0:00:11]} Re8 {[%emt 0:03:45]} 12. Rfe1 {[%emt 0:01:26]} a6 {[%emt 0:05:42]} 13. e4 {[%emt 0:10:19]} dxe4 {[%emt 0:23:45]} 14. Nxe4 {[%emt 0:02:18]} Nxe4 {[%emt 0:01:37]} 15. Bxe7 {[%emt 0:00:14]} Qxe7 {[%emt 0:00:07]} 16. Bxe4 {[%emt 0:00:05]} Rab8 {[%emt 0:07:35]} 17. c5 {[%emt 0:04:56]} bxc5 {[%emt 0:03:43]} 18. dxc5 {[%emt 0:01:49]} Red8 {[%emt 0:07:25]} 19. b4 {[%emt 0:01:12]} a5 {[%emt 0:00:10]} 20. bxa5 {[%emt 0:06:01]} Nxc5 {[%emt 0:03:41]} 21. Bh7+ {[%emt 0:00:17]} Kh8 {[%emt 0:00:06]} 22. Rxd8+ {[%emt 0:11:10]} Rxd8 {[%emt 0:00:59]} 23. Ne5 {[%emt 0:00:27]} Rd5 {[%emt 0:00:09]} 24. Bg6 {[%emt 0:03:32]} f6 {[%emt 0:01:02]} 25. Nf3 {[%emt 0:00:36]} Ba6 {[%emt 0:04:02]} 26. g3 {[%emt 0:04:01]} Qc7 {[%emt 0:00:52]} 27. Qc3 {[%emt 0:01:53]} e5 {[%emt 0:00:46]} 28. Nh4 {[%emt 0:00:42]} Bd3 {[%emt 0:06:32]} 29. Bxd3 {[%emt 0:07:44]} Nxd3 {[%emt 0:00:18]} 30. Re3 {[%emt 0:00:06]} Nc5 {[%emt 0:02:55]} 31. Qc2 {[%emt 0:00:05]} e4 {[%emt 0:02:12]} 32. Ng6+ {[%emt 0:00:19]} Kh7 {[%emt 0:01:02]} 33. Nf4 {[%emt 0:00:06]} Re5 {[%emt 0:02:49]} 34. Ra3 {[%emt 0:04:12]} g5 {[%emt 0:00:09]} 35. a6 {[%emt 0:00:35]} Nxa6 {[%emt 0:01:13]} 36. Rxa6 {[%emt 0:00:05]} gxf4 {[%emt 0:00:05]} 37. Rxc6 {[%emt 0:02:10]} Qa5 {[%emt 0:04:23]} 38. Rc7+ {[%emt 0:00:55]} Kg6 {[%emt 0:00:06]} 39. gxf4 {[%emt 0:00:27]} Re6 {[%emt 0:01:04]} 40. Rc5 {[%emt 0:00:00]} Qe1+ {[%emt 0:00:00]} 41. Kg2 {[%emt 0:00:58]} f5 {[%emt 0:00:50]} 42. Qb3 {[%emt 0:03:02]} Rf6 {[%emt 0:01:01]} 43. Rc3 {[%emt 0:00:13]} Rf7 {[%emt 0:04:40]} 44. Qe6+ {[%emt 0:00:27]} Kg7 {[%emt 0:00:30]} 45. Rg3+ {[%emt 0:00:04]} Kf8 {[%emt 0:00:10]} 46. Qd6+ {[%emt 0:00:05]} Re7 {[%emt 0:00:17]} 47. Qd8+ {[%emt 0:00:03]} Re8 {[%emt 0:00:11]} 48. Qf6# {[%emt 0:00:05]} 1-0

[Event "56th Ilmar Raud Memorial 2022"]
[Site "Viljandi"]
[Date "2022.07.10"]
[Round "9.4"]
[White "Seeman, Tarvo"]
[Black "Miezis, Normunds"]
[Result "1/2-1/2"]
[ECO "B40"]
[WhiteElo "2410"]
[BlackElo "2446"]
[Annotator "RC"]
[PlyCount "29"]
[EventDate "2022.07.05"]
[EventType "swiss"]
[EventCountry "EST"]
[SourceTitle "playchess.com"]
[Source "ChessBase"]
[SourceQuality "1"]
[TimeControl "40/5400+30:900+30"]

1. e4 {[%emt 0:00:07]} c5 {[%emt 0:00:14]} 2. Nf3 {[%emt 0:00:04]} e6 {[%emt 0:00:12]} 3. c4 {[%emt 0:00:11]} Nc6 {[%emt 0:00:26]} 4. Be2 {[%emt 0:00:20]} e5 {[%emt 0:00:29]} 5. Nc3 {[%emt 0:00:53]} d6 {[%emt 0:00:29]} 6. d3 {[%emt 0:02:25]} g6 {[%emt 0:00:23]} 7. a3 {[%emt 0:05:40]} a5 {[%emt 0:00:54]} 8. h4 {[%emt 0:15:35]} h5 {[%emt 0:00:52]} 9. Nd5 {[%emt 0:02:53]} Bg7 {[%emt 0:00:54]} 10. Bg5 {[%emt 0:04:42]} f6 {[%emt 0:00:27]} 11. Bd2 {[%emt 0:00:27]} a4 {[%emt 0:09:39]} 12. Nc3 {[%emt 0:01:31]} Qa5 {[%emt 0:00:33]} 13. Nd5 {[%emt 0:00:45]} Qd8 {[%emt 0:00:14]} 14. Nc3 {[%emt 0:00:05]} Qa5 {[%emt 0:00:10]} 15. Nd5 {[%emt 0:00:05]} 1/2-1/2